[Event "*** Titled Tuesday Blitz"]
[Site "Chess.com"]
[Date "2020.11.10"]
[Round "8"]
[White "ambaixador"]
[Black "DenisQ"]
[Result "0-1"]
[WhiteElo "2467"]
[BlackElo "2641"]
[TimeControl "180+1"]
[EndTime "11:32:26 PST"]
[Termination "DenisQ won by resignation"]

1. Nf3 {[%clk 0:03:00.9]} 1... Nf6 {[%clk 0:02:58.2]} 2. c4 {[%clk 0:03:00.4]}
2... c6 {[%clk 0:02:57.8]} 3. g3 {[%clk 0:03:00.4]} 3... d5 {[%clk 0:02:58.6]}
4. Bg2 {[%clk 0:03:00]} 4... Bf5 {[%clk 0:02:57.9]} 5. Qb3 {[%clk 0:02:58.8]}
5... Qb6 {[%clk 0:02:56.6]} 6. O-O {[%clk 0:02:58.3]} 6... e6 {[%clk 0:02:54.6]}
7. d3 {[%clk 0:02:47.7]} 7... Nbd7 {[%clk 0:02:53.8]} 8. cxd5 {[%clk 0:02:35.6]}
8... Qxb3 {[%clk 0:02:51.2]} 9. axb3 {[%clk 0:02:34.6]} 9... exd5 {[%clk
0:02:51.4]} 10. Nd4 {[%clk 0:02:31.1]} 10... Bg6 {[%clk 0:02:49.4]} 11. Nc3
{[%clk 0:02:28.6]} 11... Bc5 {[%clk 0:02:46.4]} 12. Be3 {[%clk 0:02:22.7]} 12...
Ng4 {[%clk 0:02:44.1]} 13. Na4 {[%clk 0:01:48.9]} 13... Nxe3 {[%clk 0:02:43]}
14. fxe3 {[%clk 0:01:49.8]} 14... Bd6 {[%clk 0:02:42.5]} 15. Kf2 {[%clk
0:01:43.9]} 15... O-O {[%clk 0:02:39.1]} 16. h3 {[%clk 0:01:25.7]} 16... Rfe8
{[%clk 0:02:37.7]} 17. g4 {[%clk 0:01:20.3]} 17... a6 {[%clk 0:02:26.6]} 18. Nc3
{[%clk 0:01:16]} 18... Re5 {[%clk 0:02:21.2]} 19. Nf3 {[%clk 0:01:14.6]} 19...
Re7 {[%clk 0:02:20.6]} 20. Nh4 {[%clk 0:01:13.3]} 20... Rae8 {[%clk 0:02:18.9]}
21. Nxg6 {[%clk 0:01:13.4]} 21... hxg6 {[%clk 0:02:19.1]} 22. e4 {[%clk
0:01:13.9]} 22... d4 {[%clk 0:02:11]} 23. Nb1 {[%clk 0:01:08.8]} 23... Bb4
{[%clk 0:02:05.3]} 24. Na3 {[%clk 0:01:02.6]} 24... g5 {[%clk 0:01:46.7]} 25.
Nc2 {[%clk 0:00:54]} 25... Bc5 {[%clk 0:01:45.9]} 26. Ra4 {[%clk 0:00:51.6]}
26... Ne5 {[%clk 0:01:43.3]} 27. Rc1 {[%clk 0:00:39.7]} 27... Ba7 {[%clk
0:01:38.8]} 28. Kf1 {[%clk 0:00:32.3]} 28... Rd8 {[%clk 0:01:35.8]} 29. Na3
{[%clk 0:00:29.9]} 29... Re6 {[%clk 0:01:29.1]} 30. Nc2 {[%clk 0:00:28.7]} 30...
Rf6+ {[%clk 0:01:25.6]} 31. Ke1 {[%clk 0:00:28.4]} 31... Ng6 {[%clk 0:01:23.6]}
32. Bf3 {[%clk 0:00:24.1]} 32... Nf4 {[%clk 0:01:23]} 33. Ra5 {[%clk 0:00:14.7]}
33... Nxd3+ {[%clk 0:01:17.1]} 34. exd3 {[%clk 0:00:15.6]} 34... Rxf3 {[%clk
0:01:17]} 35. Rxg5 {[%clk 0:00:15.7]} 35... Rxd3 {[%clk 0:01:16.6]} 36. h4
{[%clk 0:00:16.2]} 36... Rxb3 {[%clk 0:01:16]} 37. h5 {[%clk 0:00:16]} 37... d3
{[%clk 0:01:15.6]} 38. Na1 {[%clk 0:00:15.3]} 38... d2+ {[%clk 0:01:15.3]} 0-1

[Event "*** Titled Tuesday Blitz"]
[Site "Chess.com"]
[Date "2020.11.10"]
[Round "8"]
[White "thedjoker98"]
[Black "GM_Crest"]
[Result "1/2-1/2"]
[WhiteElo "2584"]
[BlackElo "2718"]
[TimeControl "180+1"]
[EndTime "11:32:32 PST"]
[Termination "Game drawn by repetition"]

1. d4 {[%clk 0:03:00.9]} 1... d5 {[%clk 0:02:58.3]} 2. c4 {[%clk 0:03:01.3]}
2... dxc4 {[%clk 0:02:58.8]} 3. Nf3 {[%clk 0:02:57]} 3... a6 {[%clk 0:02:57]} 4.
e3 {[%clk 0:02:56.4]} 4... e6 {[%clk 0:02:56]} 5. Bxc4 {[%clk 0:02:55.8]} 5...
c5 {[%clk 0:02:56.6]} 6. O-O {[%clk 0:02:54.7]} 6... Nf6 {[%clk 0:02:57.1]} 7.
a3 {[%clk 0:02:52.2]} 7... b5 {[%clk 0:02:52.9]} 8. Be2 {[%clk 0:02:51.9]} 8...
Bb7 {[%clk 0:02:47.5]} 9. dxc5 {[%clk 0:02:52]} 9... Qxd1 {[%clk 0:02:46.5]} 10.
Rxd1 {[%clk 0:02:52.9]} 10... Bxc5 {[%clk 0:02:46.9]} 11. b4 {[%clk 0:02:53.4]}
11... Be7 {[%clk 0:02:45.4]} 12. Bb2 {[%clk 0:02:53.8]} 12... Nbd7 {[%clk
0:02:45.4]} 13. Nbd2 {[%clk 0:02:53.9]} 13... O-O {[%clk 0:02:41.6]} 14. Nb3
{[%clk 0:02:53.9]} 14... Rac8 {[%clk 0:02:40.9]} 15. Rac1 {[%clk 0:02:51.5]}
15... Bd5 {[%clk 0:02:37.8]} 16. Nfd4 {[%clk 0:02:48.7]} 16... Nb6 {[%clk
0:02:37.4]} 17. Na5 {[%clk 0:02:44.5]} 17... Rfe8 {[%clk 0:02:31.3]} 18. f3
{[%clk 0:02:39.7]} 18... Bf8 {[%clk 0:01:53.1]} 19. e4 {[%clk 0:02:37.6]} 19...
Ba8 {[%clk 0:01:53.1]} 20. Kf2 {[%clk 0:02:34.4]} 20... Nfd7 {[%clk 0:01:42.7]}
21. Ba1 {[%clk 0:02:20]} 21... Rxc1 {[%clk 0:01:33.2]} 22. Rxc1 {[%clk
0:02:19.1]} 22... Bd6 {[%clk 0:01:33.7]} 23. g3 {[%clk 0:02:18.2]} 23... Rc8
{[%clk 0:01:23.5]} 24. Rxc8+ {[%clk 0:02:15.8]} 24... Nxc8 {[%clk 0:01:23.7]}
25. Ndc6 {[%clk 0:01:55]} 25... Ne7 {[%clk 0:01:10.5]} 26. Nxe7+ {[%clk
0:01:49.4]} 26... Bxe7 {[%clk 0:01:10]} 27. e5 {[%clk 0:01:49.4]} 27... Bd8
{[%clk 0:01:06.9]} 28. Nb3 {[%clk 0:01:47.3]} 28... Bb6+ {[%clk 0:01:05.3]} 29.
Ke1 {[%clk 0:01:44.1]} 29... Bd5 {[%clk 0:01:05.3]} 30. Nd2 {[%clk 0:01:40.6]}
30... g5 {[%clk 0:01:05.5]} 31. Bd3 {[%clk 0:01:32.5]} 31... Be3 {[%clk
0:00:58.7]} 32. Ke2 {[%clk 0:01:28.6]} 32... Bxd2 {[%clk 0:00:55.5]} 33. Kxd2
{[%clk 0:01:28.2]} 33... Bxf3 {[%clk 0:00:56]} 34. a4 {[%clk 0:01:23.6]} 34...
Bc6 {[%clk 0:00:52.1]} 35. a5 {[%clk 0:01:13.4]} 35... Kg7 {[%clk 0:00:47.7]}
36. Ke3 {[%clk 0:01:12.4]} 36... Bd5 {[%clk 0:00:45.7]} 37. Bd4 {[%clk
0:01:10.6]} 37... Nb8 {[%clk 0:00:45.6]} 38. h4 {[%clk 0:01:05.8]} 38... gxh4
{[%clk 0:00:44.8]} 39. gxh4 {[%clk 0:01:06.7]} 39... Nc6 {[%clk 0:00:45.4]} 40.
Bc3 {[%clk 0:01:07]} 40... h6 {[%clk 0:00:44.9]} 41. Kf4 {[%clk 0:01:06.5]}
41... Ne7 {[%clk 0:00:39.1]} 42. Bd4 {[%clk 0:01:03]} 42... Nc6 {[%clk
0:00:38.2]} 43. Bc3 {[%clk 0:01:03]} 43... Bg2 {[%clk 0:00:35.8]} 44. Kg3 {[%clk
0:00:58.3]} 44... Bd5 {[%clk 0:00:35.3]} 45. Kf4 {[%clk 0:00:58.6]} 1/2-1/2

[Event "*** Titled Tuesday Blitz"]
[Site "Chess.com"]
[Date "2020.11.10"]
[Round "8"]
[White "kidagent"]
[Black "IngOscarArdila"]
[Result "1-0"]
[WhiteElo "2297"]
[BlackElo "2129"]
[TimeControl "180+1"]
[EndTime "11:32:37 PST"]
[Termination "kidagent won on time"]

1. e4 {[%clk 0:03:00.9]} 1... e5 {[%clk 0:02:59.6]} 2. Nf3 {[%clk 0:03:01.2]}
2... Nc6 {[%clk 0:02:59.8]} 3. Bb5 {[%clk 0:03:01.7]} 3... a6 {[%clk 0:02:59.2]}
4. Ba4 {[%clk 0:03:01.5]} 4... Nf6 {[%clk 0:02:58.9]} 5. O-O {[%clk 0:03:01.6]}
5... b5 {[%clk 0:02:58.6]} 6. Bb3 {[%clk 0:03:01.5]} 6... Be7 {[%clk 0:02:59.2]}
7. Re1 {[%clk 0:03:01.7]} 7... O-O {[%clk 0:02:58.6]} 8. a4 {[%clk 0:03:01.9]}
8... Rb8 {[%clk 0:02:57.6]} 9. c3 {[%clk 0:03:01.4]} 9... d6 {[%clk 0:02:57.2]}
10. axb5 {[%clk 0:03:01.2]} 10... axb5 {[%clk 0:02:56.8]} 11. h3 {[%clk
0:02:59.3]} 11... Bb7 {[%clk 0:02:51.8]} 12. d4 {[%clk 0:02:58.6]} 12... Ra8
{[%clk 0:02:50]} 13. Rxa8 {[%clk 0:02:56.9]} 13... Qxa8 {[%clk 0:02:48.5]} 14.
Nbd2 {[%clk 0:02:57.1]} 14... exd4 {[%clk 0:02:39.2]} 15. cxd4 {[%clk
0:02:56.6]} 15... Na5 {[%clk 0:02:39.1]} 16. Bc2 {[%clk 0:02:55.9]} 16... Nc4
{[%clk 0:02:37.5]} 17. Nxc4 {[%clk 0:02:43.7]} 17... bxc4 {[%clk 0:02:36.9]} 18.
Nd2 {[%clk 0:02:30.9]} 18... Re8 {[%clk 0:02:20.9]} 19. f3 {[%clk 0:02:30.3]}
19... Ba6 {[%clk 0:02:00]} 20. e5 {[%clk 0:02:23.3]} 20... dxe5 {[%clk
0:01:59.2]} 21. dxe5 {[%clk 0:02:23.5]} 21... Bc5+ {[%clk 0:01:59.1]} 22. Kh1
{[%clk 0:02:23.7]} 22... Nh5 {[%clk 0:01:58.8]} 23. Kh2 {[%clk 0:02:06.2]} 23...
Bf2 {[%clk 0:01:57.4]} 24. Re4 {[%clk 0:02:03.5]} 24... Ng3 {[%clk 0:01:35.7]}
25. Rg4 {[%clk 0:01:56]} 25... Rxe5 {[%clk 0:01:23.5]} 26. Rxg3 {[%clk
0:01:55.2]} 26... Bxg3+ {[%clk 0:01:23.2]} 27. Kxg3 {[%clk 0:01:56.1]} 27... Qe8
{[%clk 0:01:17.9]} 28. Ne4 {[%clk 0:01:51.4]} 28... f5 {[%clk 0:01:16.9]} 29.
Nc3 {[%clk 0:01:47]} 29... Bb7 {[%clk 0:00:58.7]} 30. Bf4 {[%clk 0:01:43.2]}
30... Re1 {[%clk 0:00:56.8]} 31. Qd4 {[%clk 0:01:39.4]} 31... h6 {[%clk
0:00:27.1]} 32. Bxf5 {[%clk 0:01:35.2]} 32... Qf8 {[%clk 0:00:13.7]} 33. Qxc4+
{[%clk 0:01:31.4]} 33... Kh8 {[%clk 0:00:13.3]} 34. Be4 {[%clk 0:01:28.5]} 34...
Bxe4 {[%clk 0:00:10.5]} 35. Nxe4 {[%clk 0:01:29.4]} 35... Qf5 {[%clk 0:00:06.4]}
36. Qxc7 {[%clk 0:01:25.4]} 36... Qg6+ {[%clk 0:00:05.7]} 37. Kf2 {[%clk
0:01:24.1]} 37... Rb1 {[%clk 0:00:04.7]} 38. Be5 {[%clk 0:01:21.6]} 38... Kh7
{[%clk 0:00:03.8]} 39. Nf6+ {[%clk 0:01:18.5]} 39... Kh8 {[%clk 0:00:01.8]} 40.
Qd8+ {[%clk 0:01:18]} 1-0

[Event "*** Titled Tuesday Blitz"]
[Site "Chess.com"]
[Date "2020.11.10"]
[Round "8"]
[White "PSvidler"]
[Black "maciek_92"]
[Result "0-1"]
[WhiteElo "2866"]
[BlackElo "2782"]
[TimeControl "180+1"]
[EndTime "11:32:41 PST"]
[Termination "maciek_92 won by resignation"]

1. e4 {[%clk 0:03:00.9]} 1... c5 {[%clk 0:02:58.9]} 2. Nf3 {[%clk 0:03:00.7]}
2... d6 {[%clk 0:02:58.6]} 3. d4 {[%clk 0:03:00.5]} 3... cxd4 {[%clk 0:02:59.5]}
4. Nxd4 {[%clk 0:03:00.8]} 4... Nf6 {[%clk 0:03:00.1]} 5. Nc3 {[%clk 0:03:00.6]}
5... a6 {[%clk 0:03:00.7]} 6. Be3 {[%clk 0:02:53.7]} 6... e5 {[%clk 0:02:59.4]}
7. Nb3 {[%clk 0:02:53.5]} 7... Be7 {[%clk 0:02:59.3]} 8. f3 {[%clk 0:02:53.2]}
8... Be6 {[%clk 0:02:59.3]} 9. Qd2 {[%clk 0:02:52.8]} 9... Nbd7 {[%clk
0:02:51.1]} 10. g4 {[%clk 0:02:50.4]} 10... b5 {[%clk 0:02:50.8]} 11. O-O-O
{[%clk 0:02:49.3]} 11... O-O {[%clk 0:02:48.7]} 12. Rg1 {[%clk 0:02:42.4]} 12...
b4 {[%clk 0:02:34]} 13. Nd5 {[%clk 0:02:42.2]} 13... Bxd5 {[%clk 0:02:34.4]} 14.
exd5 {[%clk 0:02:42.3]} 14... a5 {[%clk 0:02:35.3]} 15. g5 {[%clk 0:02:37.5]}
15... Ne8 {[%clk 0:01:44.7]} 16. Kb1 {[%clk 0:02:36.9]} 16... Nc7 {[%clk
0:01:41.2]} 17. f4 {[%clk 0:02:29.4]} 17... a4 {[%clk 0:01:33.1]} 18. Nc1 {[%clk
0:02:27.5]} 18... exf4 {[%clk 0:01:32.5]} 19. Bxf4 {[%clk 0:02:27.8]} 19... Ra5
{[%clk 0:01:16.5]} 20. Bg2 {[%clk 0:02:06.4]} 20... Nc5 {[%clk 0:01:09.1]} 21.
Qxb4 {[%clk 0:02:02.7]} 21... Qa8 {[%clk 0:01:09.1]} 22. Nd3 {[%clk 0:01:42.2]}
22... Rb8 {[%clk 0:01:07.4]} 23. Qc4 {[%clk 0:01:42.3]} 23... Nb5 {[%clk
0:01:05]} 24. Ka1 {[%clk 0:01:34.9]} 24... Nb3+ {[%clk 0:00:53.7]} 25. cxb3
{[%clk 0:01:18.7]} 25... axb3 {[%clk 0:00:54.6]} 26. Qxb3 {[%clk 0:01:05.9]}
26... Nd4 {[%clk 0:00:52.2]} 27. Qxb8+ {[%clk 0:01:05.8]} 27... Qxb8 {[%clk
0:00:52.2]} 28. Nc1 {[%clk 0:01:03.2]} 28... Nc2+ {[%clk 0:00:28.4]} 29. Kb1
{[%clk 0:01:03.2]} 29... Na3+ {[%clk 0:00:26.8]} 30. Ka1 {[%clk 0:01:03.4]}
30... Nc4 {[%clk 0:00:26.9]} 31. Nd3 {[%clk 0:01:01.5]} 31... Qa7 {[%clk
0:00:23.8]} 32. Rc1 {[%clk 0:00:43.2]} 32... Rxa2+ {[%clk 0:00:21.7]} 33. Kb1
{[%clk 0:00:43.4]} 33... Qa4 {[%clk 0:00:17.6]} 0-1

[Event "*** Titled Tuesday Blitz"]
[Site "Chess.com"]
[Date "2020.11.10"]
[Round "8"]
[White "Flutaga"]
[Black "Javylavilla"]
[Result "0-1"]
[WhiteElo "2013"]
[BlackElo "2258"]
[TimeControl "180+1"]
[EndTime "11:32:41 PST"]
[Termination "Javylavilla won on time"]

1. e3 {[%clk 0:02:49]} 1... Nf6 {[%clk 0:02:58.2]} 2. b3 {[%clk 0:02:37]} 2...
g6 {[%clk 0:02:54.8]} 3. Bb2 {[%clk 0:02:36.8]} 3... Bg7 {[%clk 0:02:55.1]} 4.
f4 {[%clk 0:02:33]} 4... O-O {[%clk 0:02:55.1]} 5. Nf3 {[%clk 0:02:33]} 5... d6
{[%clk 0:02:53.9]} 6. Be2 {[%clk 0:02:31]} 6... c5 {[%clk 0:02:53.2]} 7. O-O
{[%clk 0:02:30.4]} 7... Nc6 {[%clk 0:02:53]} 8. Nc3 {[%clk 0:02:21.7]} 8... a6
{[%clk 0:02:51.3]} 9. Qe1 {[%clk 0:02:16.4]} 9... b5 {[%clk 0:02:49]} 10. Rb1
{[%clk 0:02:15]} 10... b4 {[%clk 0:02:47]} 11. Nd1 {[%clk 0:02:05.7]} 11... a5
{[%clk 0:02:46.9]} 12. a4 {[%clk 0:01:52.6]} 12... bxa3 {[%clk 0:02:44.5]} 13.
Bxa3 {[%clk 0:01:52.7]} 13... a4 {[%clk 0:02:45.2]} 14. bxa4 {[%clk 0:01:47.4]}
14... Rxa4 {[%clk 0:02:46.1]} 15. Bb2 {[%clk 0:01:47.3]} 15... Ra8 {[%clk
0:02:47]} 16. Nf2 {[%clk 0:01:46.1]} 16... Bf5 {[%clk 0:02:39.6]} 17. d3 {[%clk
0:01:37.8]} 17... Ra2 {[%clk 0:02:36.7]} 18. e4 {[%clk 0:01:30.6]} 18... Bd7
{[%clk 0:02:33.7]} 19. e5 {[%clk 0:01:29.5]} 19... Nd5 {[%clk 0:02:33.2]} 20.
Bc1 {[%clk 0:01:17.2]} 20... Rxc2 {[%clk 0:02:27.3]} 21. Ne4 {[%clk 0:01:14.6]}
21... Bf5 {[%clk 0:02:21.5]} 22. Ng3 {[%clk 0:01:10.2]} 22... Bg4 {[%clk
0:02:17.2]} 23. Ba3 {[%clk 0:01:04.4]} 23... Nc3 {[%clk 0:02:15.2]} 24. Rb2
{[%clk 0:01:00.3]} 24... Nxe2+ {[%clk 0:02:13.2]} 25. Nxe2 {[%clk 0:00:59.4]}
25... Rxb2 {[%clk 0:02:10.1]} 26. Bxb2 {[%clk 0:00:59.4]} 26... dxe5 {[%clk
0:02:10.6]} 27. Nxe5 {[%clk 0:00:55.8]} 27... Nxe5 {[%clk 0:02:09.6]} 28. fxe5
{[%clk 0:00:56.7]} 28... Qxd3 {[%clk 0:02:08.9]} 29. Nf4 {[%clk 0:00:56.6]}
29... Qc2 {[%clk 0:02:02.3]} 30. Rf2 {[%clk 0:00:50.8]} 30... Qb3 {[%clk
0:01:58.9]} 31. h3 {[%clk 0:00:46.7]} 31... Bd7 {[%clk 0:01:51.3]} 32. Qa5
{[%clk 0:00:41.4]} 32... c4 {[%clk 0:01:36.4]} 33. Qc7 {[%clk 0:00:38.1]} 33...
Bf5 {[%clk 0:01:35.3]} 34. Nd5 {[%clk 0:00:20.1]} 34... Qd1+ {[%clk 0:01:30.3]}
35. Kh2 {[%clk 0:00:10.7]} 35... Qxd5 {[%clk 0:01:31.2]} 36. Qxe7 {[%clk
0:00:09.8]} 36... Rb8 {[%clk 0:01:23.3]} 37. Bc3 {[%clk 0:00:09.2]} 37... Rb3
{[%clk 0:01:21.9]} 38. Ba1 {[%clk 0:00:05.6]} 38... Be6 {[%clk 0:01:18.2]} 39.
Qe8+ {[%clk 0:00:05.3]} 39... Bf8 {[%clk 0:01:18.1]} 0-1

[Event "*** Titled Tuesday Blitz"]
[Site "Chess.com"]
[Date "2020.11.10"]
[Round "8"]
[White "Happy1712Drummer"]
[Black "Fandorine"]
[Result "0-1"]
[WhiteElo "2238"]
[BlackElo "2837"]
[TimeControl "180+1"]
[EndTime "11:32:42 PST"]
[Termination "Fandorine won on time"]

1. d4 {[%clk 0:03:00.9]} 1... Nf6 {[%clk 0:02:59.8]} 2. Nf3 {[%clk 0:02:47.2]}
2... g6 {[%clk 0:02:58.6]} 3. c3 {[%clk 0:02:46.6]} 3... Bg7 {[%clk 0:02:58.5]}
4. Bg5 {[%clk 0:02:47.1]} 4... O-O {[%clk 0:02:58.1]} 5. Nbd2 {[%clk 0:02:46.6]}
5... d5 {[%clk 0:02:52.4]} 6. Bxf6 {[%clk 0:02:43.3]} 6... Bxf6 {[%clk
0:02:51.3]} 7. e4 {[%clk 0:02:44.2]} 7... c6 {[%clk 0:02:46.6]} 8. Bd3 {[%clk
0:02:41]} 8... dxe4 {[%clk 0:02:41.6]} 9. Nxe4 {[%clk 0:02:40.2]} 9... Bg7
{[%clk 0:02:41.8]} 10. O-O {[%clk 0:02:39.5]} 10... Nd7 {[%clk 0:02:42.1]} 11.
Re1 {[%clk 0:02:35.9]} 11... Nf6 {[%clk 0:02:41.9]} 12. Neg5 {[%clk 0:02:24.8]}
12... Nd5 {[%clk 0:02:34]} 13. Ne5 {[%clk 0:02:15.9]} 13... e6 {[%clk
0:02:33.8]} 14. Ngf3 {[%clk 0:00:57.9]} 14... a5 {[%clk 0:02:27.4]} 15. a4
{[%clk 0:00:56.8]} 15... Qc7 {[%clk 0:02:24.4]} 16. h4 {[%clk 0:00:54.3]} 16...
Nf6 {[%clk 0:02:16.5]} 17. Ng5 {[%clk 0:00:51.8]} 17... c5 {[%clk 0:01:58]} 18.
Qf3 {[%clk 0:00:46.4]} 18... cxd4 {[%clk 0:01:54.1]} 19. cxd4 {[%clk 0:00:47.3]}
19... Qe7 {[%clk 0:01:54.5]} 20. h5 {[%clk 0:00:41.7]} 20... Nxh5 {[%clk
0:01:47.7]} 21. Nxh7 {[%clk 0:00:41]} 21... Rd8 {[%clk 0:01:38.2]} 22. Nxg6
{[%clk 0:00:15]} 22... fxg6 {[%clk 0:01:37.8]} 23. Bxg6 {[%clk 0:00:15.6]} 23...
Nf6 {[%clk 0:01:20.1]} 24. Ng5 {[%clk 0:00:15.3]} 24... Ra6 {[%clk 0:01:08.6]}
25. Bf7+ {[%clk 0:00:14.5]} 25... Kf8 {[%clk 0:01:04.8]} 26. d5 {[%clk
0:00:12.7]} 26... Rxd5 {[%clk 0:00:57.9]} 27. Bxe6 {[%clk 0:00:11.6]} 27... Bxe6
{[%clk 0:00:50.6]} 28. Nh7+ {[%clk 0:00:11.2]} 28... Kg8 {[%clk 0:00:46.4]} 29.
Nxf6+ {[%clk 0:00:09.1]} 29... Qxf6 {[%clk 0:00:47.3]} 0-1

[Event "*** Titled Tuesday Blitz"]
[Site "Chess.com"]
[Date "2020.11.10"]
[Round "8"]
[White "Zarikovs1999"]
[Black "Lion-Al-Messi"]
[Result "0-1"]
[WhiteElo "2371"]
[BlackElo "2543"]
[TimeControl "180+1"]
[EndTime "11:32:44 PST"]
[Termination "Lion-Al-Messi won on time"]

1. e4 {[%clk 0:03:00.9]} 1... e6 {[%clk 0:03:00.4]} 2. d4 {[%clk 0:03:00.4]}
2... d5 {[%clk 0:03:01.3]} 3. Nc3 {[%clk 0:03:00.9]} 3... Nf6 {[%clk 0:03:01.1]}
4. e5 {[%clk 0:03:00.8]} 4... Nfd7 {[%clk 0:03:01.5]} 5. f4 {[%clk 0:03:01.4]}
5... c5 {[%clk 0:03:01.8]} 6. Nf3 {[%clk 0:03:02.3]} 6... Nc6 {[%clk 0:03:02.2]}
7. Be3 {[%clk 0:03:02.3]} 7... a6 {[%clk 0:03:02.7]} 8. Qd2 {[%clk 0:03:02.3]}
8... b5 {[%clk 0:03:02.5]} 9. dxc5 {[%clk 0:02:57.6]} 9... Bxc5 {[%clk
0:03:02.2]} 10. Nd4 {[%clk 0:02:57.4]} 10... Qb6 {[%clk 0:02:57.7]} 11. Nce2
{[%clk 0:02:56.4]} 11... Bb7 {[%clk 0:02:47.4]} 12. c3 {[%clk 0:02:32.7]} 12...
b4 {[%clk 0:02:44.6]} 13. g3 {[%clk 0:02:12.4]} 13... bxc3 {[%clk 0:02:41.7]}
14. bxc3 {[%clk 0:02:10.5]} 14... Na5 {[%clk 0:02:41.1]} 15. Nc2 {[%clk
0:01:50.5]} 15... Nc4 {[%clk 0:02:38.9]} 16. Bxc5 {[%clk 0:01:49.2]} 16... Nxc5
{[%clk 0:02:31.1]} 17. Qd4 {[%clk 0:01:46.7]} 17... Qb2 {[%clk 0:02:23]} 18.
Qxc5 {[%clk 0:01:41.4]} 18... Qxc2 {[%clk 0:02:21.6]} 19. Bh3 {[%clk 0:01:30.3]}
19... Rc8 {[%clk 0:02:10.2]} 20. Qd4 {[%clk 0:01:28.8]} 20... O-O {[%clk
0:02:09]} 21. Bg4 {[%clk 0:01:21.2]} 21... Nb2 {[%clk 0:01:51.7]} 22. O-O {[%clk
0:01:17.1]} 22... Rc4 {[%clk 0:01:52.6]} 23. Qb6 {[%clk 0:01:13.8]} 23... Ba8
{[%clk 0:01:46.8]} 24. Rac1 {[%clk 0:01:07.4]} 24... Na4 {[%clk 0:01:47]} 25.
Rxc2 {[%clk 0:00:29.6]} 25... Nxb6 {[%clk 0:01:46.7]} 26. Rb1 {[%clk 0:00:21.8]}
26... Na4 {[%clk 0:01:46.1]} 27. Rb4 {[%clk 0:00:20.5]} 27... Rfc8 {[%clk
0:01:45.1]} 28. Rxc4 {[%clk 0:00:18.9]} 28... Rxc4 {[%clk 0:01:46]} 29. Kf2
{[%clk 0:00:19.6]} 29... g6 {[%clk 0:01:45.7]} 30. Ke3 {[%clk 0:00:19.4]} 30...
Re4+ {[%clk 0:01:34.8]} 31. Kd2 {[%clk 0:00:15.8]} 31... Nb6 {[%clk 0:01:35]}
32. Bf3 {[%clk 0:00:13.7]} 32... Nc4+ {[%clk 0:01:35.9]} 33. Ke1 {[%clk
0:00:13.5]} 33... Re3 {[%clk 0:01:35.4]} 34. Bg2 {[%clk 0:00:11.3]} 34... d4
{[%clk 0:01:31.1]} 35. Bxa8 {[%clk 0:00:09.8]} 35... d3 {[%clk 0:01:31.2]} 36.
Rd2 {[%clk 0:00:01.7]} 36... Nxd2 {[%clk 0:01:30.9]} 37. Kxd2 {[%clk 0:00:02.6]}
37... Rxe2+ {[%clk 0:01:31.8]} 38. Kxd3 {[%clk 0:00:02.6]} 38... Rxa2 {[%clk
0:01:32.7]} 39. c4 {[%clk 0:00:03.2]} 39... Rxh2 {[%clk 0:01:33.6]} 40. c5
{[%clk 0:00:03.6]} 40... Rh3 {[%clk 0:01:29.4]} 41. c6 {[%clk 0:00:03.2]} 41...
Rxg3+ {[%clk 0:01:29.5]} 42. Kd4 {[%clk 0:00:02.6]} 42... Rg1 {[%clk 0:01:29]}
43. Kc5 {[%clk 0:00:02.2]} 43... Rc1+ {[%clk 0:01:29.9]} 44. Kd6 {[%clk
0:00:02]} 44... a5 {[%clk 0:01:24.6]} 45. c7 {[%clk 0:00:02.2]} 45... Rxc7
{[%clk 0:01:23.8]} 46. Kxc7 {[%clk 0:00:03.1]} 46... a4 {[%clk 0:01:24.7]} 0-1

[Event "*** Titled Tuesday Blitz"]
[Site "Chess.com"]
[Date "2020.11.10"]
[Round "8"]
[White "narutosmith"]
[Black "geordie_derraugh"]
[Result "0-1"]
[WhiteElo "2304"]
[BlackElo "2468"]
[TimeControl "180+1"]
[EndTime "11:32:44 PST"]
[Termination "geordie_derraugh won on time"]

1. d4 {[%clk 0:03:00.9]} 1... Nf6 {[%clk 0:02:59.7]} 2. Bf4 {[%clk 0:03:01.4]}
2... e6 {[%clk 0:02:59.1]} 3. e3 {[%clk 0:03:00.8]} 3... d5 {[%clk 0:02:59.3]}
4. Nf3 {[%clk 0:02:59.8]} 4... Bd6 {[%clk 0:02:59.5]} 5. Nbd2 {[%clk 0:02:58.8]}
5... Bxf4 {[%clk 0:02:59.5]} 6. exf4 {[%clk 0:02:59.7]} 6... Qd6 {[%clk
0:02:59.7]} 7. g3 {[%clk 0:02:59]} 7... O-O {[%clk 0:03:00]} 8. Bd3 {[%clk
0:02:53.6]} 8... c5 {[%clk 0:02:59.8]} 9. c3 {[%clk 0:02:52.3]} 9... Nc6 {[%clk
0:03:00]} 10. Rc1 {[%clk 0:02:40.2]} 10... Bd7 {[%clk 0:02:59.1]} 11. O-O {[%clk
0:02:39.2]} 11... Rac8 {[%clk 0:02:57.7]} 12. dxc5 {[%clk 0:02:23]} 12... Qxc5
{[%clk 0:02:57]} 13. c4 {[%clk 0:02:22.8]} 13... Qb6 {[%clk 0:02:39.4]} 14. cxd5
{[%clk 0:02:17.3]} 14... Nxd5 {[%clk 0:02:34.6]} 15. Nc4 {[%clk 0:02:16.3]}
15... Qb4 {[%clk 0:02:28.1]} 16. a3 {[%clk 0:02:15]} 16... Qe7 {[%clk
0:02:27.5]} 17. Re1 {[%clk 0:02:08.6]} 17... Qf6 {[%clk 0:02:19.4]} 18. Ng5
{[%clk 0:02:03.3]} 18... g6 {[%clk 0:02:12.6]} 19. Nd6 {[%clk 0:01:56.5]} 19...
Rb8 {[%clk 0:01:54.5]} 20. Qd2 {[%clk 0:01:10]} 20... h6 {[%clk 0:01:51.1]} 21.
Nge4 {[%clk 0:01:07.9]} 21... Qg7 {[%clk 0:01:51.2]} 22. Nc5 {[%clk 0:01:06.2]}
22... Rfd8 {[%clk 0:01:50.6]} 23. Ndxb7 {[%clk 0:00:52.4]} 23... Rxb7 {[%clk
0:01:46.9]} 24. Nxb7 {[%clk 0:00:51.9]} 24... Rb8 {[%clk 0:01:40.3]} 25. Nc5
{[%clk 0:00:48.7]} 25... Rxb2 {[%clk 0:01:40]} 26. Rc2 {[%clk 0:00:46]} 26...
Nd4 {[%clk 0:01:35]} 27. Kg2 {[%clk 0:00:27]} 27... Nxc2 {[%clk 0:01:32.2]} 28.
Bxc2 {[%clk 0:00:25.2]} 28... Bc6 {[%clk 0:01:27.5]} 29. Kg1 {[%clk 0:00:16.7]}
29... Qf8 {[%clk 0:01:04.7]} 30. Nd3 {[%clk 0:00:16.8]} 30... Ra2 {[%clk
0:01:04.8]} 31. Ne5 {[%clk 0:00:13.1]} 31... Ba4 {[%clk 0:01:03.9]} 32. Rc1
{[%clk 0:00:13.1]} 32... Qxa3 {[%clk 0:00:49.8]} 33. Qd3 {[%clk 0:00:01.2]}
33... Qxc1+ {[%clk 0:00:48.4]} 0-1